Workbook

Sheet Title
A4: Electronic Fuse/Inrush Limiter
A6: NIS5232 Design Aid
A23: Directions:
A25: Begin with sheet 1 and work in order of the sheet numbers. All user inputs are in cells with magenta backgrounds.
A26: The remarks input on sheet 1 will be copied to the other sheets for future reference to revisions, etc…
A28: Please note that all calculations on this sheet are based on nominal values. For a worst case design, consult the
A29: data sheet for the appropriate tolerances that need to be factored in.
A31: Sheet 1: System inputs for Current Limit and dv/dt circuit.
A33: Sheet 2: Suggested values and user input for actual resistor and capacitor selections.
A35: Sheet 3: Thermal calcuations
A37: Sheet 4: Basic schematic and parts list, based on inputs from the other sheets.
A49: Rev. 3 Copyright 2009, ON Semiconductor

Sheet 1. System Requirments
A1: NIS5232 Design Aid ON Semiconductor
A3: Remarks: | B3: NIS5232 Design Assistance
B4: Enter titles and rev information in above space
A8: Maximum steady state input: | C8: 15 | D8: Volts | E8: =IF(C8>18,"Max steady state rating is 18 volts",IF(C8<7.6, "Min input voltage is 7.6 volts", " ")) -> 
A10: Enter "K" or "D" for Kelvin or Direct Sensing | C10: k | D10: K/D | E10: =IF(C10="k"," ",IF(C10="d"," ","Please enter K or D")) -> 
A11: Current Limit Short Circuit Level: | C11: 2.5 | D11: Amps | E11: =IF(C11<0.4, "Current limit out of range, increase level",IF(C11<=10, " ",IF(C11>5.5,"Current limit out of range, decrease level"))) -> 
A13: Output Slew Rate (t from 0 -12 V) | C13: 20 | D13: ms
L16: This graph shows the overload and short circuit current limit
G17: R_limit | H17: Overload | I17: Short Ckt | L17: curves. The lower curve (short circuit) is the current limit
G18: 8.9 | H18: 6.45 | I18: 5.46 | L18: level that the device will limit at when there is significant
G19: 12.4 | H19: 5.16 | I19: 4.03 | L19: voltage from drain to source (<300 mV) of the main power
F20: Kelvin Sensing | G20: 17.4 | H20: 4.25 | I20: 3.04 | L20: FET. This occurs at turn on, into a capacitor, or during a
F21: Schematic and Curves | G21: 26.7 | H21: 3.47 | I21: 2.1 | L21: short circuit event.
G22: 44.2 | H22: 2.97 | I22: 1.36 | L22: The overload level is in effect when the unit is operational
G23: 90.9 | H23: 2.56 | I23: 0.7 | L23: and the FET is fully enhanced (at its lowest Rds(on)). When
L24: the overload level is reached, the current limit will auto-
L25: matically reduce to the short circuit level.
L26: For more information on this feature, refer to appliation note
L27: AND8140.
L32: Kelvin sensing is used for the data in the electrical table and
L33: therefore has guaranteed min and max limits under the conditions
L34: tested. Direct sensing has only graphical data available.
G35: R_limit | H35: OL | I35: SC | L35: There are slight differences between the overload and short
F36: Direct Sensing | G36: 150 | H36: 2.05 | I36: 0.446 | L36: circuit curves that may influence the choice of configurations.
F37: Schematic and Curves | G37: 97.6 | H37: 2.16 | I37: 0.68
G38: 82 | H38: 2.23 | I38: 0.78
G39: 68 | H39: 2.33 | I39: 0.95
G40: 47.5 | H40: 2.59 | I40: 1.37
G41: 27 | H41: 3.52 | I41: 2.36
G42: 15 | H42: 5.37 | I42: 4.39
G43: 10 | H43: 8.26 | I43: 7.58
C51: Sheet 1. System Requirements

Sheet 2. Bias Components
A1: NIS5232 Design Aid ON Semiconductor
A3: ='1. System Requirments'!B3 -> NIS5232 Design Assistance
B5: Suggested | G5: Actual | W5: adjust | X5: adjust | Y5: Signif | Z5: Signif | AA5: Signif
B6: Exact | C6: 2%, 5% | D6: 0.01 | N6: integ | O6: text | P6: length | Q6: Signif | R6: exp | S6: n | T6: n | U6: value | V6: value | W6: value | X6: value | Y6: digits | Z6: digits | AA6: digits
A7: Current Limit | Q7: digits | S7: 0.01 | T7: 0.05 | U7: 0.01 | V7: 0.05 | W7: 0.05 | X7: 0.1 | Y7: 0.01 | Z7: 0.05 | AA7: 0.1
A8: RSense = | B8: =IF('1. System Requirments'!C10="k",((B9)/37.23)^-1.139,IF('1. System Requirments'!C10="d",(B9/74.719)^-0.97, "K or D?")) -> 21.67671653 | C8: =Z8*10^(R8-3) -> 22 | D8: =Y8*10^(R8-3) -> 21.5 | E8: Ω | G8: 22 | H8: Ω | J8: Ishort = | K8: =IF('1. System Requirments'!C10="k",37.23*(G8^-0.878),IF('1. System Requirments'!C10="d",74.719*(G8^-1.0309))) -> 2.467436146 | L8: A | N8: =INT(B8+0.5) -> 22 | O8: =N8 -> 22 | P8: =LEN(O8) -> 2 | Q8: =B8/(10^(P8-1)) -> 2.167671653 | R8: =P8+2 -> 4 | S8: =INT(LOG(Q8^96)) -> 32 | T8: =INT(LOG(Q8^24)) -> 8 | U8: =10^(S8/96) -> 2.15443469 | V8: =10^(T8/24) -> 2.15443469 | W8: =IF(T8<10,V8,IF(T8<17,V8+0.1,IF(T8<21,V8,IF(T8=22,V8-0.1,IF(T8<25,V8))))) -> 2.15443469 | Y8: =0.01*INT((U8*100)+0.5) -> 2.15 | Z8: =0.1*INT((W8*10)+0.5) -> 2.2 | AD8: y = 6.4484 Ln(x) - 4.4706 | AG8: R = e^((V+4.4706)/6.4484)
A9: Ilimit = | B9: ='1. System Requirments'!C11 -> 2.5 | C9: Amps | J9: Ioverload = | K9: =IF('1. System Requirments'!C10="k", ((42.65*(G8^-1.0611))+2.2), IF('1. System Requirments'!C10="d",((98.879*(G8^-1.2241))+1.8))) -> 3.804997384 | L9: A | AD9: y = 4.8916 Ln(x) - 0.0143
B11: Min | C11: Typ | D11: Max | F11: Note: The min/max values for the current limit are based on
A12: Ishort | B12: =C12*0.8 -> 1.973948917 | C12: =K8 -> 2.467436146 | D12: =C12*1.235 -> 3.04728364 | G12: the tolerance of the short circuit current from the data sheet.
A13: Ioverload | B13: =C13*0.8 -> 3.043997907 | C13: =K9 -> 3.804997384 | D13: =C13*1.235 -> 4.699171769 | G13: These are not guaranteed numbers, but are considered to be
G14: reasonably accurate.
B17: Exact | C17: 0.05 | D17: 0.1
A18: Output Slew Rate (dv/dt) | S18: 0.1 | U18: 0.1
A19: Cdv/dt = | B19: =IF('1. System Requirments'!C13<1.5,"0",((B20/24000000000)-0.00000000005)*1000000000000) -> 783.3333333 | C19: =IF(B19="0","0",Z19*10^R19) -> 750 | D19: =IF(B19="0","0",AA19*10^R19) -> 820 | E19: pF | G19: 820 | H19: pF | J19: t0-12 = | K19: =((50+G19)/1000000000000)*24000000000 -> 20.88 | L19: ms | N19: =INT(B19+0.5) -> 783 | O19: =N19 -> 783 | P19: =LEN(O19) -> 3 | Q19: =B19/(10^(P19-1)) -> 7.833333333 | R19: =P19-1 -> 2 | S19: =INT(LOG(Q19^12)+0.5) -> 11 | T19: =INT(LOG(Q19^24)+0.5) -> 21 | U19: =10^(S19/12) -> 8.254041853 | V19: =10^(T19/24) -> 7.498942093 | W19: =IF(T19<10,V19,IF(T19<17,V19+0.1,IF(T19<21,V19,IF(T19=22,V19-0.1,IF(T19<25,V19))))) -> 7.498942093 | X19: =IF(S19<5,U19,IF(S19<9,U19+0.1,IF(S19<11,U19,IF(S19<12,U19-0.1,U19)))) -> 8.154041853 | Z19: =0.1*INT((W19*10)+0.5) -> 7.5 | AA19: =0.1*INT((X19*10)+0.5) -> 8.2 | AD19: y = 24.825 Ln(x) - 69.6 | AG19: R = e^((V+69.6)/24.825)
A20: t0-12 = | B20: ='1. System Requirments'!C13 -> 20 | C20: ms | G20: . | AD20: y = 23.147 Ln(x) - 64.098
AD23: I = 59.375 R-0.8364 | AG23: R = (I/59.375)-1.1956
AD24: I = 28.508 R-0.4655
C25: Sheet 4. Bias Components

Sheet 3. Thermal
A1: NIS5232 Design Aid ON Semiconductor
A3: Thermal Calculations
A5: ='1. System Requirments'!B3 -> NIS5232 Design Assistance
A7: metric conversion
A8: 160 | B8: mm2 = | C8: =A8/645.16 -> 0.248000496 | D8: in2
F10: This calculation is based on empirical data and does
A11: Temperature Rise | F11: not include the effects of airflow. The data was taken on a
B12: Average current = | C12: 2.5 | D12: A | E12: =IF(C12<0,"Must use postitive number",IF(C12>11.5,"Out of range, reduce current"," ")) ->  | F12: 0.063", double sided board with 1 oz. copper.
B13: Copper area = | C13: 0.25 | D13: in2 | F13: =IF(C13<0.015, "use 0.015 sq. in. for min copper"," ") -> 
B14: Max ambient temp = | C14: 80 | D14: °C | F14: This calculation also does not include the effects of
F15: surrounding thermal sources. It is strongly advised to
A16: CaseTemperature | C16: =C17-(20*0.06*C12^2) -> 110.9860306 | D16: °C | F16: conduct appropriate testing to confirm safe thermal
A17: Junction Temp | C17: =((61.1*C13^-0.3741)*((C12^2)*0.06))+C14 -> 118.4860306 | D17: °C | F17: performance.
E19: =IF(C19>125,"Caution, thermal shutdown at 135°C"," ") ->  | F19: =IF(C17>125, "Operation at this temperature in not recommended"," ") -> 
F20: Calculations are valid for copper area up to 2 in2.
F21: For minimum copper area enter 0.015 in2.
E51: Sheet 3. Thermal Data

Sheet 4. Schem & BOM
A1: NIS5232 Design Aid ON Semiconductor
A3: ='1. System Requirments'!B3 -> NIS5232 Design Assistance
A21: Kelvin schematic for NIS5232 | I21: Direct schematic for NIS5232
A26: Specifications:
C27: Ilimit = | D27: ='2. Bias Components '!K8 -> 2.467436146 | E27: A | G27: (short circuit limit level)
A28: =IF('1. System Requirments'!C10="k","Kelvin sense",IF('1. System Requirments'!C10="d", "Direct sense", "D or K?")) -> Kelvin sense | C28: Ilimit = | D28: ='2. Bias Components '!K9 -> 3.804997384 | E28: A | G28: (overload limit level)
C29: t0-12 = | D29: ='2. Bias Components '!K19 -> 20.88 | E29: ms
A32: Parts: | B32: Quan. | G32: Pdiss
B33: 1 | C33: Rlimit = | D33: ='2. Bias Components '!G8 -> 22 | E33: Ω | G33: =500/D33 -> 22.72727273 | H33: mW | I33: Note: Actual resistor ratings should be
B34: 1 | C34: Cdv/dt = | D34: ='2. Bias Components '!G19 -> 820 | E34: pF | I34: derated by a factor of at least 2; so a
I35: resistor that will dissipate 10 mW
I36: should have at least a 20 mW rating.
A41: Thermal Conditions
A43: Maximum Junction Temperature: | E43: ='3. Thermal'!C17 -> 118.4860306 | F43: °C
A44: Maximum Case Temperature: | E44: ='3. Thermal'!C16 -> 110.9860306 | F44: °C
E48: Sheet 4. Schematic and BOM

Sheet Troubleshooting
A1: NIS5232 Troubleshooting Guide
A3: It is strongly recommended that an oscilloscope be used for troubleshooting this device. While DVM's are
A4: convenient and accurate, they won't often yeild valuable information such as if a signal is oscillating. All
A5: signals on this unit should be dc levels. If an ac signal is found, the source of the oscillation must be
A6: determined and rectified.
A8: Problem:
A9: Device does not turn on -
A10: 1. Check the Vcc and ground connections to assure that the chip has proper power applied to it. The
A11: operating input range is 9 to 18 Vdc.
A13: 2. Measure the enable voltage and confirm that it is greater than 3.3 volts. Below this voltage, the
A14: device may not turn on.
A16: 3. The dv/dt pin needs to be either connected to a capacitor, which sets the slope of the output voltage
A17: when the device turns on, or left floating. Do not ground this pin.
A19: 4. An appropriate current sense resistor needs to be connected. If the path between the source and
A20: current limit pins is open, the device will not turn on.
A22: 5. This chip employes a latching thermal circuit. Assure that there is not an overload condition
A23: on the output that could run the device into thermal limit.
A25: Output voltage is low -
A26: 1. If the output voltage is low but not zero, assure that there is not an overload condition on the
A27: output. The eFuse will reduce the output voltage if the current limit point is reached and will remain there
A28: until the fault is removed or the temperature limit is reached and the part shuts down.
A30: 2. The overvoltage clamp will activate between 14 and 16.2 volts. If the input is in this range or above,
A31: the output voltage will be limited by the internal clamp circuit.
A33: Current limit is too high - The NIS5232 uses a dual level current limit, based on the physics of the
A34: SENSEFET. At turn on, the inrush limiter sees a short circuit, due to the charging of any capacitance
A35: on its output. Under this condition, the current will limit at the level shown on the short circuit limit curve.
A36: Once the unit is operational, the SENSEFET is fully enhanced (at its lowest RDSon). Under this condition
A37: it will not limit the current until it reaches the level of the overload current limit. When this level is reached
A38: the current limit will automatically drop down to the short circuit limit level. Please see application note
A39: AND8140 for more details on this.
